[Event "Kvibergspelen September 2019"]
[Site "Prioritet Serneke Arena, Krutvagen 2, Gothenburg, Sweden"]
[Date "2019.09.28"]
[Round "5.20"]
[White "Jaksland, Tim"]
[Black "Persson, Ulf"]
[Result "1-0"]
[TimeControl "15 minutes + 5 seconds per move from move one (Round 1 - 4) / 90 minutes + 30 seconds per move from move one (Round 5 - 8)"]
[WhiteTitle "FM"]
[WhiteFideId "1401084"]
[BlackFideId "1726854"]
[WhiteElo "2214"]
[BlackElo "1991"]

1. Nf3 {[%clk 01:30:57]} {[%emt 00:00:02]} Nf6 {[%clk 01:30:47]} {[%emt
00:00:14]} 2. c4 {[%clk 01:31:21]} {[%emt 00:00:05]} e6 {[%clk 01:30:39]}
{[%emt 00:00:39]} 3. g3 {[%clk 01:31:44]} {[%emt 00:00:07]} d5 {[%clk
01:25:47]} {[%emt 00:05:21]} 4. Bg2 {[%clk 01:32:06]} {[%emt 00:00:08]} c6
{[%clk 01:24:31]} {[%emt 00:01:47]} 5. O-O {[%clk 01:32:07]} {[%emt 00:00:28]}
Be7 {[%clk 01:21:42]} {[%emt 00:03:19]} 6. d4 {[%clk 01:29:25]} {[%emt
00:03:11]} Ne4 {[%clk 01:17:19]} {[%emt 00:04:54]} 7. Nfd2 {[%clk 01:17:06]}
{[%emt 00:12:49]} f5 {[%clk 01:03:15]} {[%emt 00:14:35]} 8. Qc2 {[%clk
00:57:53]} {[%emt 00:19:42]} O-O {[%clk 01:00:41]} {[%emt 00:03:04]} 9. b3
{[%clk 00:57:10]} {[%emt 00:01:13]} Nd7 {[%clk 00:58:56]} {[%emt 00:02:15]} 10.
Bb2 {[%clk 00:54:02]} {[%emt 00:03:38]} Ndf6 {[%clk 00:57:26]} {[%emt
00:01:59]} 11. f3 {[%clk 00:35:47]} {[%emt 00:18:46]} Nxd2 {[%clk 00:51:48]}
{[%emt 00:06:07]} 12. Nxd2 {[%clk 00:36:11]} {[%emt 00:00:07]} Qe8 {[%clk
00:51:31]} {[%emt 00:00:48]} 13. Rae1 {[%clk 00:30:34]} {[%emt 00:06:06]} f4
{[%clk 00:34:53]} {[%emt 00:17:08]} 14. gxf4 {[%clk 00:24:32]} {[%emt
00:06:32]} Qh5 {[%clk 00:30:16]} {[%emt 00:05:07]} 15. e4 {[%clk 00:20:40]}
{[%emt 00:04:22]} Bd8 {[%clk 00:29:40]} {[%emt 00:01:06]} 16. Ba3 {[%clk
00:18:18]} {[%emt 00:02:52]} Bb6 {[%clk 00:24:04]} {[%emt 00:06:05]} 17. Bxf8
{[%clk 00:16:07]} {[%emt 00:02:42]} Bxd4+ {[%clk 00:24:23]} {[%emt 00:00:11]}
18. Kh1 {[%clk 00:16:34]} {[%emt 00:00:03]} Kxf8 {[%clk 00:24:23]} {[%emt
00:00:30]} 19. e5 {[%clk 00:15:57]} {[%emt 00:01:06]} Ne8 {[%clk 00:23:25]}
{[%emt 00:01:28]} 20. Qd3 {[%clk 00:15:24]} {[%emt 00:01:03]} Bb6 {[%clk
00:22:48]} {[%emt 00:01:07]} 21. f5 {[%clk 00:14:21]} {[%emt 00:01:33]} Bd8
{[%clk 00:19:40]} {[%emt 00:03:37]} 22. f4 {[%clk 00:13:50]} {[%emt 00:01:02]}
Bh4 {[%clk 00:11:41]} {[%emt 00:08:29]} 23. Rd1 {[%clk 00:14:11]} {[%emt
00:00:08]} dxc4 {[%clk 00:11:42]} {[%emt 00:00:29]} 24. Nxc4 {[%clk 00:13:37]}
{[%emt 00:01:04]} Qxf5 {[%clk 00:11:27]} {[%emt 00:00:45]} 25. Be4 {[%clk
00:12:26]} {[%emt 00:01:41]} Qh5 {[%clk 00:06:57]} {[%emt 00:04:59]} 26. Bxh7
{[%clk 00:12:38]} {[%emt 00:00:19]} Bg3 {[%clk 00:06:47]} {[%emt 00:00:40]} 27.
Rd2 {[%clk 00:11:08]} {[%emt 00:02:00]} b5 {[%clk 00:04:48]} {[%emt 00:02:29]}
28. Nd6 {[%clk 00:10:28]} {[%emt 00:01:10]} Qh4 {[%clk 00:01:41]} {[%emt
00:03:37]} 29. Nxe8 {[%clk 00:09:14]} {[%emt 00:01:44]} c5 {[%clk 00:01:29]}
{[%emt 00:00:42]} 30. Qd6+ {[%clk 00:08:51]} {[%emt 00:00:52]} Kf7 {[%clk
00:00:49]} {[%emt 00:01:11]} 31. Qc7+ {[%clk 00:08:51]} {[%emt 00:00:30]} Qe7
{[%clk 00:00:55]} {[%emt 00:00:24]} 32. Nd6+ {[%clk 00:07:53]} {[%emt
00:01:28]} Kf8 {[%clk 00:00:56]} {[%emt 00:00:30]} 33. Qxe7+ {[%clk 00:08:15]}
{[%emt 00:00:07]} Kxe7 {[%clk 00:01:22]} {[%emt 00:00:05]} 34. hxg3 {[%clk
00:08:32]} {[%emt 00:00:13]} 1-0

[Event "Kvibergspelen September 2019"]
[Site "Prioritet Serneke Arena, Krutvagen 2, Gothenburg, Sweden"]
[Date "2019.09.28"]
[Round "6.1"]
[White "Hector, Jonny"]
[Black "Carlsson, Ludvig"]
[Result "1-0"]
[TimeControl "15 minutes + 5 seconds per move from move one (Round 1 - 4) / 90 minutes + 30 seconds per move from move one (Round 5 - 8)"]
[WhiteTitle "GM"]
[BlackTitle "CM"]
[WhiteFideId "1700090"]
[BlackFideId "1727010"]
[WhiteElo "2477"]
[BlackElo "2066"]

1. e4 {[%clk 01:30:53]} {[%emt 00:00:06]} e6 {[%clk 01:30:49]} {[%emt
00:00:12]} 2. d4 {[%clk 01:31:11]} {[%emt 00:00:12]} d5 {[%clk 01:31:10]}
{[%emt 00:00:10]} 3. Nc3 {[%clk 01:31:35]} {[%emt 00:00:05]} Bb4 {[%clk
01:31:30]} {[%emt 00:00:09]} 4. a3 {[%clk 01:31:10]} {[%emt 00:00:55]} Bxc3+
{[%clk 01:31:29]} {[%emt 00:00:31]} 5. bxc3 {[%clk 01:31:36]} {[%emt 00:00:04]}
dxe4 {[%clk 01:31:48]} {[%emt 00:00:11]} 6. Qg4 {[%clk 01:31:56]} {[%emt
00:00:09]} Nf6 {[%clk 01:32:11]} {[%emt 00:00:08]} 7. Qxg7 {[%clk 01:32:18]}
{[%emt 00:00:08]} Rg8 {[%clk 01:32:37]} {[%emt 00:00:05]} 8. Qh6 {[%clk
01:32:36]} {[%emt 00:00:10]} Bd7 {[%clk 01:30:22]} {[%emt 00:02:47]} 9. Rb1
{[%clk 01:29:26]} {[%emt 00:03:40]} c5 {[%clk 01:28:45]} {[%emt 00:02:08]} 10.
Rxb7 {[%clk 01:26:23]} {[%emt 00:03:32]} Nc6 {[%clk 01:21:00]} {[%emt
00:08:16]} 11. dxc5 {[%clk 01:20:40]} {[%emt 00:06:13]} Rg6 {[%clk 01:16:37]}
{[%emt 00:04:53]} 12. Qd2 {[%clk 01:19:30]} {[%emt 00:01:40]} Rb8 {[%clk
01:05:12]} {[%emt 00:11:56]} 13. Rxb8 {[%clk 01:14:22]} {[%emt 00:05:37]} Qxb8
{[%clk 01:03:19]} {[%emt 00:02:23]} 14. Ne2 {[%clk 01:14:34]} {[%emt 00:00:17]}
Ng4 {[%clk 00:56:26]} {[%emt 00:07:24]} 15. Nf4 {[%clk 01:11:29]} {[%emt
00:03:34]} Rf6 {[%clk 00:55:19]} {[%emt 00:01:37]} 16. Be2 {[%clk 01:09:46]}
{[%emt 00:02:13]} e5 {[%clk 00:44:44]} {[%emt 00:11:06]} 17. Bxg4 {[%clk
01:00:31]} {[%emt 00:09:44]} Bxg4 {[%clk 00:44:30]} {[%emt 00:00:44]} 18. Nd5
{[%clk 01:00:48]} {[%emt 00:00:13]} Rg6 {[%clk 00:44:06]} {[%emt 00:00:55]} 19.
Ne3 {[%clk 00:42:27]} {[%emt 00:18:51]} Be6 {[%clk 00:40:31]} {[%emt 00:04:04]}
20. Qe2 {[%clk 00:39:55]} {[%emt 00:03:02]} Kf8 {[%clk 00:35:14]} {[%emt
00:05:47]} 21. O-O {[%clk 00:37:53]} {[%emt 00:02:32]} Qd8 {[%clk 00:33:43]}
{[%emt 00:02:01]} 22. f3 {[%clk 00:36:13]} {[%emt 00:02:11]} Qh4 {[%clk
00:28:22]} {[%emt 00:05:51]} 23. fxe4 {[%clk 00:35:24]} {[%emt 00:01:19]} Qxe4
{[%clk 00:27:57]} {[%emt 00:00:55]} 24. Qd3 {[%clk 00:34:13]} {[%emt 00:01:41]}
Qh4 {[%clk 00:24:35]} {[%emt 00:03:52]} 25. Nf5 {[%clk 00:33:25]} {[%emt
00:01:17]} Bxf5 {[%clk 00:24:48]} {[%emt 00:00:17]} 26. Qxf5 {[%clk 00:33:29]}
{[%emt 00:00:26]} Qe7 {[%clk 00:24:50]} {[%emt 00:00:29]} 27. Be3 {[%clk
00:32:27]} {[%emt 00:01:31]} Qe6 {[%clk 00:23:39]} {[%emt 00:01:41]} 28. Qf3
{[%clk 00:30:54]} {[%emt 00:02:03]} Kg7 {[%clk 00:21:58]} {[%emt 00:02:12]} 29.
Rd1 {[%clk 00:29:34]} {[%emt 00:01:49]} Qg4 {[%clk 00:18:14]} {[%emt 00:04:16]}
30. Qxg4 {[%clk 00:28:20]} {[%emt 00:01:43]} Rxg4 {[%clk 00:18:38]} {[%emt
00:00:05]} 31. Rd7 {[%clk 00:28:23]} {[%emt 00:00:27]} Rg6 {[%clk 00:17:54]}
{[%emt 00:01:15]} 32. Kf2 {[%clk 00:28:18]} {[%emt 00:00:35]} Kf6 {[%clk
00:17:27]} {[%emt 00:00:57]} 33. Rc7 {[%clk 00:28:03]} {[%emt 00:00:44]} Kg7
{[%clk 00:17:30]} {[%emt 00:00:28]} 34. Kf3 {[%clk 00:27:29]} {[%emt 00:01:04]}
Re6 {[%clk 00:16:49]} {[%emt 00:01:11]} 35. Ke4 {[%clk 00:27:13]} {[%emt
00:00:46]} a6 {[%clk 00:15:48]} {[%emt 00:01:31]} 36. g4 {[%clk 00:26:23]}
{[%emt 00:01:19]} Kf8 {[%clk 00:13:59]} {[%emt 00:02:19]} 37. Rc8+ {[%clk
00:24:44]} {[%emt 00:02:09]} Kg7 {[%clk 00:13:53]} {[%emt 00:00:36]} 38. h4
{[%clk 00:24:52]} {[%emt 00:00:22]} Rg6 {[%clk 00:13:13]} {[%emt 00:01:11]} 39.
h5 {[%clk 00:23:33]} {[%emt 00:01:48]} Re6 {[%clk 00:12:44]} {[%emt 00:00:59]}
40. h6+ {[%clk 00:22:26]} {[%emt 00:01:38]} Kg6 {[%clk 00:12:48]} {[%emt
00:00:26]} 41. Rg8+ {[%clk 00:22:46]} {[%emt 00:00:09]} Kf6 {[%clk 00:13:07]}
{[%emt 00:00:11]} 42. Bg5# {[%emt 00:00:06]} 1-0

[Event "Kvibergspelen September 2019"]
[Site "Prioritet Serneke Arena, Krutvagen 2, Gothenburg, Sweden"]
[Date "2019.09.28"]
[Round "6.2"]
[White "Bellon Lopez, Juan"]
[Black "Hillarp Persson, Tiger"]
[Result "0-1"]
[TimeControl "15 minutes + 5 seconds per move from move one (Round 1 - 4) / 90 minutes + 30 seconds per move from move one (Round 5 - 8)"]
[WhiteTitle "GM"]
[BlackTitle "GM"]
[WhiteFideId "2200031"]
[BlackFideId "1700812"]
[WhiteElo "2334"]
[BlackElo "2558"]

1. b3 {[%clk 01:28:38]} {[%emt 00:02:21]} e5 {[%clk 01:28:52]} {[%emt
00:02:08]} 2. Bb2 {[%clk 01:28:43]} {[%emt 00:00:26]} d6 {[%clk 01:29:13]}
{[%emt 00:00:08]} 3. d4 {[%clk 01:27:57]} {[%emt 00:01:16]} e4 {[%clk
01:29:33]} {[%emt 00:00:10]} 4. c4 {[%clk 01:27:38]} {[%emt 00:00:49]} d5
{[%clk 01:29:00]} {[%emt 00:01:04]} 5. e3 {[%clk 01:26:39]} {[%emt 00:01:29]}
c6 {[%clk 01:26:03]} {[%emt 00:03:28]} 6. Qd2 {[%clk 01:25:06]} {[%emt
00:02:03]} f5 {[%clk 01:23:48]} {[%emt 00:02:44]} 7. g3 {[%clk 01:23:43]}
{[%emt 00:01:52]} Nf6 {[%clk 01:23:27]} {[%emt 00:00:52]} 8. h4 {[%clk
01:21:00]} {[%emt 00:03:13]} Rg8 {[%clk 01:16:12]} {[%emt 00:07:45]} 9. Ba3
{[%clk 01:17:21]} {[%emt 00:04:09]} Bxa3 {[%clk 01:11:56]} {[%emt 00:04:47]} 10.
Nxa3 {[%clk 01:17:41]} {[%emt 00:00:10]} Qe7 {[%clk 01:12:07]} {[%emt
00:00:18]} 11. Nb1 {[%clk 01:09:00]} {[%emt 00:09:11]} Be6 {[%clk 01:08:57]}
{[%emt 00:03:40]} 12. Nc3 {[%clk 01:08:28]} {[%emt 00:01:02]} Nbd7 {[%clk
01:07:43]} {[%emt 00:01:44]} 13. cxd5 {[%clk 01:05:34]} {[%emt 00:03:25]} cxd5
{[%clk 01:07:10]} {[%emt 00:01:03]} 14. Nh3 {[%clk 01:01:36]} {[%emt 00:04:27]}
h6 {[%clk 01:04:29]} {[%emt 00:03:11]} 15. Nf4 {[%clk 00:55:14]} {[%emt
00:06:52]} g5 {[%clk 01:03:36]} {[%emt 00:01:22]} 16. hxg5 {[%clk 00:55:35]}
{[%emt 00:00:10]} hxg5 {[%clk 01:04:00]} {[%emt 00:00:07]} 17. Nxe6 {[%clk
00:54:25]} {[%emt 00:01:41]} Qxe6 {[%clk 01:04:23]} {[%emt 00:00:06]} 18. Nb5
{[%clk 00:50:17]} {[%emt 00:04:38]} Qb6 {[%clk 01:00:37]} {[%emt 00:04:16]} 19.
a4 {[%clk 00:39:24]} {[%emt 00:11:24]} a6 {[%clk 00:47:50]} {[%emt 00:13:17]}
20. a5 {[%clk 00:36:11]} {[%emt 00:03:43]} axb5 {[%clk 00:47:17]} {[%emt
00:01:03]} 21. axb6 {[%clk 00:36:39]} {[%emt 00:00:02]} Rxa1+ {[%clk 00:47:33]}
{[%emt 00:00:14]} 22. Ke2 {[%clk 00:37:08]} Kf7 {[%clk 00:47:45]} {[%emt
00:00:17]} 23. Bg2 {[%clk 00:37:37]} {[%emt 00:00:02]} Rxh1 {[%clk 00:48:05]}
{[%emt 00:00:10]} 24. Bxh1 {[%clk 00:38:03]} {[%emt 00:00:04]} Ra8 {[%clk
00:48:19]} {[%emt 00:00:16]} 25. Qc2 {[%clk 00:34:43]} {[%emt 00:03:50]} Nxb6
{[%clk 00:48:21]} {[%emt 00:00:28]} 26. Bg2 {[%clk 00:30:16]} {[%emt 00:04:57]}
Nc8 {[%clk 00:29:48]} {[%emt 00:19:03]} 27. Kd2 {[%clk 00:16:20]} {[%emt
00:14:27]} Ne7 {[%clk 00:23:29]} {[%emt 00:06:48]} 28. Bf1 {[%clk 00:16:10]}
{[%emt 00:00:39]} b4 {[%clk 00:15:44]} {[%emt 00:08:16]} 29. Be2 {[%clk
00:16:10]} {[%emt 00:00:31]} Nc6 {[%clk 00:07:46]} {[%emt 00:08:27]} 30. Bd1
{[%clk 00:12:52]} {[%emt 00:03:48]} Rh8 {[%clk 00:06:20]} {[%emt 00:01:57]} 31.
Qc5 {[%clk 00:11:49]} {[%emt 00:01:32]} Rh2 {[%clk 00:06:36]} {[%emt 00:00:14]}
32. Ke1 {[%clk 00:11:22]} {[%emt 00:00:57]} Rh1+ {[%clk 00:06:47]} {[%emt
00:00:19]} 33. Kd2 {[%clk 00:11:25]} {[%emt 00:00:27]} f4 {[%clk 00:07:01]}
{[%emt 00:00:16]} 34. gxf4 {[%clk 00:11:36]} {[%emt 00:00:20]} gxf4 {[%clk
00:07:24]} {[%emt 00:00:06]} 35. Qb6 {[%clk 00:09:20]} {[%emt 00:02:46]} f3
{[%clk 00:07:04]} {[%emt 00:00:50]} 36. Qxb7+ {[%emt 00:00:29]} Ne7 {[%clk
00:07:27]} {[%emt 00:00:06]} 37. Qc7 {[%clk 00:03:57]} {[%emt 00:05:53]} Rg1
{[%clk 00:07:13]} {[%emt 00:00:45]} 38. Qd6 {[%clk 00:03:49]} {[%emt 00:00:38]}
Nf5 {[%clk 00:05:02]} {[%emt 00:02:41]} 39. Qf4 {[%clk 00:02:42]} {[%emt
00:01:36]} Kg6 {[%clk 00:05:25]} {[%emt 00:00:08]} 40. Qe5 {[%clk 00:00:39]}
{[%emt 00:02:34]} Rg2 {[%clk 00:05:07]} {[%emt 00:00:47]} 41. Ke1 {[%clk
00:00:31]} {[%emt 00:00:39]} Rxf2 {[%clk 00:03:11]} {[%emt 00:02:25]} 42. Qb8
{[%clk 00:00:50]} {[%emt 00:00:12]} Rg2 {[%clk 00:02:54]} {[%emt 00:00:46]} 0-1

[Event "Kvibergspelen September 2019"]
[Site "Prioritet Serneke Arena, Krutvagen 2, Gothenburg, Sweden"]
[Date "2019.09.28"]
[Round "6.3"]
[White "Blomqvist, Erik"]
[Black "Akesson, Ralf"]
[Result "1/2-1/2"]
[TimeControl "15 minutes + 5 seconds per move from move one (Round 1 - 4) / 90 minutes + 30 seconds per move from move one (Round 5 - 8)"]
[WhiteTitle "GM"]
[BlackTitle "GM"]
[WhiteFideId "1709437"]
[BlackFideId "1700120"]
[WhiteElo "2519"]
[BlackElo "2367"]

1. e4 {[%clk 01:30:26]} {[%emt 00:00:33]} c6 {[%clk 01:29:59]} {[%emt
00:01:01]} 2. d4 {[%clk 01:30:37]} {[%emt 00:00:19]} d5 {[%clk 01:30:22]}
{[%emt 00:00:08]} 3. exd5 {[%clk 01:30:59]} {[%emt 00:00:08]} cxd5 {[%clk
01:30:40]} {[%emt 00:00:12]} 4. Bd3 {[%clk 01:31:19]} {[%emt 00:00:09]} Nc6
{[%clk 01:30:22]} {[%emt 00:00:49]} 5. c3 {[%clk 01:31:34]} {[%emt 00:00:15]}
g6 {[%clk 01:26:22]} {[%emt 00:04:30]} 6. h3 {[%clk 01:27:38]} {[%emt
00:04:26]} Bg7 {[%clk 01:23:28]} {[%emt 00:03:25]} 7. Nf3 {[%clk 01:27:50]}
{[%emt 00:00:17]} Nf6 {[%clk 01:19:16]} {[%emt 00:04:42]} 8. O-O {[%clk
01:25:26]} {[%emt 00:02:53]} Bf5 {[%clk 01:15:59]} {[%emt 00:03:47]} 9. Be2
{[%clk 01:25:15]} {[%emt 00:00:41]} O-O {[%clk 01:14:48]} {[%emt 00:01:41]} 10.
Bf4 {[%clk 01:24:30]} {[%emt 00:01:15]} Rc8 {[%clk 01:11:59]} {[%emt 00:03:20]}
11. Nbd2 {[%clk 01:22:05]} {[%emt 00:02:53]} Re8 {[%clk 01:07:25]} {[%emt
00:05:05]} 12. Ne5 {[%clk 01:14:48]} {[%emt 00:07:46]} a6 {[%clk 00:55:28]}
{[%emt 00:12:27]} 13. g4 {[%clk 01:10:12]} {[%emt 00:05:06]} Be6 {[%clk
00:54:24]} {[%emt 00:01:33]} 14. Bd3 {[%clk 00:58:17]} {[%emt 00:12:26]} Nxe5
{[%clk 00:48:41]} {[%emt 00:06:13]} 15. Bxe5 {[%clk 00:57:15]} {[%emt
00:01:31]} Qb6 {[%clk 00:47:03]} {[%emt 00:02:09]} 16. Nb3 {[%clk 00:41:02]}
{[%emt 00:16:44]} Bf8 {[%clk 00:40:14]} {[%emt 00:07:19]} 17. a4 {[%clk
00:32:02]} {[%emt 00:09:30]} Nd7 {[%clk 00:39:36]} {[%emt 00:01:07]} 18. a5
{[%clk 00:30:29]} {[%emt 00:02:03]} Qc6 {[%clk 00:37:05]} {[%emt 00:03:02]} 19.
Bg3 {[%clk 00:30:36]} {[%emt 00:00:23]} f6 {[%clk 00:37:04]} {[%emt 00:00:30]}
20. f4 {[%clk 00:30:06]} {[%emt 00:01:00]} Bf7 {[%clk 00:36:41]} {[%emt
00:00:53]} 21. Rf2 {[%clk 00:26:41]} {[%emt 00:03:55]} e6 {[%clk 00:34:46]}
{[%emt 00:02:26]} 22. Qf1 {[%clk 00:14:25]} {[%emt 00:12:46]} Bd6 {[%clk
00:33:48]} {[%emt 00:01:28]} 23. Re1 {[%clk 00:14:21]} {[%emt 00:00:33]} Qc7
{[%clk 00:31:55]} {[%emt 00:02:23]} 1/2-1/2

[Event "Kvibergspelen September 2019"]
[Site "Prioritet Serneke Arena, Krutvagen 2, Gothenburg, Sweden"]
[Date "2019.09.28"]
[Round "6.4"]
[White "Sorensen, Hampus"]
[Black "Schandorff, Lars"]
[Result "1-0"]
[TimeControl "15 minutes + 5 seconds per move from move one (Round 1 - 4) / 90 minutes + 30 seconds per move from move one (Round 5 - 8)"]
[WhiteTitle "FM"]
[BlackTitle "GM"]
[WhiteFideId "8703884"]
[BlackFideId "1400070"]
[WhiteElo "2319"]
[BlackElo "2496"]

1. d4 {[%clk 01:30:51]} {[%emt 00:00:08]} Nf6 {[%clk 01:30:49]} {[%emt
00:00:11]} 2. c4 {[%clk 01:30:46]} {[%emt 00:00:35]} e6 {[%clk 01:31:08]}
{[%emt 00:00:09]} 3. Nf3 {[%clk 01:30:45]} {[%emt 00:00:33]} d5 {[%clk
01:31:31]} {[%emt 00:00:07]} 4. Bg5 {[%clk 01:30:37]} {[%emt 00:00:37]} Be7
{[%clk 01:30:31]} {[%emt 00:01:30]} 5. e3 {[%clk 01:29:37]} {[%emt 00:01:30]}
Nbd7 {[%clk 01:29:49]} {[%emt 00:01:13]} 6. Qc2 {[%clk 01:27:15]} {[%emt
00:02:52]} h6 {[%clk 01:29:28]} {[%emt 00:00:50]} 7. Bh4 {[%clk 01:25:56]}
{[%emt 00:01:49]} O-O {[%clk 01:29:31]} {[%emt 00:00:27]} 8. Nc3 {[%clk
01:24:42]} {[%emt 00:01:44]} c5 {[%clk 01:28:45]} {[%emt 00:01:16]} 9. cxd5
{[%clk 01:18:46]} {[%emt 00:06:26]} Nxd5 {[%clk 01:27:54]} {[%emt 00:01:20]} 10.
Bxe7 {[%clk 01:18:10]} {[%emt 00:01:07]} Qxe7 {[%clk 01:28:02]} {[%emt
00:00:21]} 11. Nxd5 {[%clk 01:16:41]} {[%emt 00:02:01]} exd5 {[%clk 01:28:25]}
{[%emt 00:00:06]} 12. Be2 {[%clk 01:13:55]} {[%emt 00:03:16]} b6 {[%clk
01:25:57]} {[%emt 00:02:57]} 13. O-O {[%clk 01:12:48]} {[%emt 00:01:37]} Bb7
{[%clk 01:26:07]} {[%emt 00:00:21]} 14. Rac1 {[%clk 01:05:43]} {[%emt
00:07:36]} Rfc8 {[%clk 01:16:50]} {[%emt 00:09:46]} 15. Qf5 {[%clk 01:03:08]}
{[%emt 00:03:05]} Nf6 {[%clk 01:12:59]} {[%emt 00:04:20]} 16. Bd3 {[%clk
00:58:13]} {[%emt 00:05:26]} Rc7 {[%clk 01:09:29]} {[%emt 00:04:00]} 17. Qf4
{[%clk 00:48:59]} {[%emt 00:09:44]} a5 {[%clk 01:06:57]} {[%emt 00:03:02]} 18.
Ne5 {[%clk 00:45:49]} {[%emt 00:03:40]} Ba6 {[%clk 01:01:57]} {[%emt 00:05:30]}
19. Bxa6 {[%clk 00:43:30]} {[%emt 00:02:49]} Rxa6 {[%clk 01:02:20]} {[%emt
00:00:06]} 20. Rfd1 {[%clk 00:43:26]} {[%emt 00:00:34]} Qd6 {[%clk 00:54:46]}
{[%emt 00:08:04]} 21. Nd3 {[%clk 00:40:50]} {[%emt 00:03:06]} Qxf4 {[%clk
00:54:23]} {[%emt 00:00:52]} 22. Nxf4 {[%clk 00:40:40]} {[%emt 00:00:41]} c4
{[%clk 00:54:35]} {[%emt 00:00:17]} 23. a4 {[%clk 00:38:47]} {[%emt 00:02:24]}
b5 {[%clk 00:49:48]} {[%emt 00:05:17]} 24. axb5 {[%clk 00:37:03]} {[%emt
00:02:14]} Rb6 {[%clk 00:50:12]} {[%emt 00:00:05]} 25. b3 {[%clk 00:34:43]}
{[%emt 00:02:50]} Rxb5 {[%clk 00:46:54]} {[%emt 00:03:47]} 26. bxc4 {[%clk
00:35:08]} {[%emt 00:00:07]} dxc4 {[%clk 00:47:12]} {[%emt 00:00:11]} 27. f3
{[%clk 00:32:00]} {[%emt 00:03:38]} c3 {[%clk 00:33:11]} {[%emt 00:14:31]} 28.
e4 {[%clk 00:26:31]} {[%emt 00:05:59]} c2 {[%clk 00:26:28]} {[%emt 00:07:12]}
29. Rd3 {[%clk 00:25:05]} {[%emt 00:01:56]} Nd7 {[%clk 00:17:34]} {[%emt
00:09:24]} 30. Kf2 {[%clk 00:22:52]} {[%emt 00:02:44]} Nb6 {[%clk 00:15:52]}
{[%emt 00:02:12]} 31. Rd2 {[%clk 00:20:38]} {[%emt 00:02:44]} Rb4 {[%clk
00:13:03]} {[%emt 00:03:19]} 32. d5 {[%clk 00:17:17]} {[%emt 00:03:51]} Rbc4
{[%clk 00:13:11]} {[%emt 00:00:22]} 33. Nd3 {[%clk 00:14:23]} {[%emt 00:03:24]}
a4 {[%clk 00:02:52]} {[%emt 00:10:49]} 34. Ne5 {[%clk 00:12:44]} {[%emt
00:02:09]} Rc3 {[%clk 00:01:56]} {[%emt 00:01:26]} 35. Nc6 {[%clk 00:07:08]}
{[%emt 00:06:06]} Kf8 {[%clk 00:01:57]} {[%emt 00:00:29]} 36. Rdxc2 {[%clk
00:07:09]} {[%emt 00:00:29]} Rxc2+ {[%clk 00:02:15]} {[%emt 00:00:12]} 37. Rxc2
{[%clk 00:07:38]} {[%emt 00:00:01]} Rc8 {[%clk 00:02:40]} {[%emt 00:00:04]} 38.
Rb2 {[%clk 00:07:35]} {[%emt 00:00:33]} Nd7 {[%clk 00:02:48]} {[%emt 00:00:22]}
39. Rb7 {[%clk 00:05:47]} {[%emt 00:02:18]} Nc5 {[%clk 00:03:11]} {[%emt
00:00:07]} 40. Ra7 {[%clk 00:06:04]} {[%emt 00:00:13]} Ke8 {[%clk 00:03:03]}
{[%emt 00:00:38]} 41. Ke3 {[%clk 00:06:08]} {[%emt 00:00:26]} 1-0